[Event "Live Chess"]
[Site "Chess.com"]
[Date "2024.06.02"]
[Round "-"]
[White "EPotapov05"]
[Black "nigelst"]
[Result "1-0"]
[WhiteElo "1822"]
[BlackElo "1736"]
[TimeControl "300"]
[EndTime "23:51:20 PDT"]
[Termination "EPotapov05 won on time"]

1. d4 {[%clk 0:04:56.7]} 1... Nf6 {[%clk 0:04:58.1]} 2. c4 {[%clk 0:04:55.7]}
2... e6 {[%clk 0:04:56.7]} 3. Nc3 {[%clk 0:04:54.5]} 3... Bb4 {[%clk 0:04:54.9]}
4. Qc2 {[%clk 0:04:53.5]} 4... c5 {[%clk 0:04:52.2]} 5. dxc5 {[%clk 0:04:51.5]}
5... Bxc5 {[%clk 0:04:50.7]} 6. Nf3 {[%clk 0:04:48.5]} 6... Qb6 {[%clk
0:04:48.5]} 7. e3 {[%clk 0:04:46]} 7... Qc7 {[%clk 0:04:46.3]} 8. Be2 {[%clk
0:04:41.1]} 8... a6 {[%clk 0:04:44.9]} 9. b3 {[%clk 0:04:30.3]} 9... O-O {[%clk
0:04:36.7]} 10. Bb2 {[%clk 0:04:29.3]} 10... Bb4 {[%clk 0:04:34.4]} 11. O-O
{[%clk 0:04:27.5]} 11... Bxc3 {[%clk 0:04:31]} 12. Bxc3 {[%clk 0:04:24.4]} 12...
b6 {[%clk 0:04:26.4]} 13. Bxf6 {[%clk 0:04:17.2]} 13... gxf6 {[%clk 0:04:24.7]}
14. Qe4 {[%clk 0:04:15.9]} 14... d6 {[%clk 0:04:15.9]} 15. Qg4+ {[%clk
0:03:58.1]} 15... Kh8 {[%clk 0:04:13.2]} 16. Qh4 {[%clk 0:03:53.4]} 16... Qe7
{[%clk 0:04:08.2]} 17. Bd3 {[%clk 0:03:51.1]} 17... f5 {[%clk 0:03:55.6]} 18.
Ng5 {[%clk 0:03:46.7]} 18... f6 {[%clk 0:03:49.4]} 19. Nf3 {[%clk 0:03:32.4]}
19... Bb7 {[%clk 0:03:47]} 20. Nd4 {[%clk 0:03:29.8]} 20... Nc6 {[%clk
0:03:37.8]} 21. Nxc6 {[%clk 0:03:19.5]} 21... Bxc6 {[%clk 0:03:35.9]} 22. Rfd1
{[%clk 0:03:19]} 22... Rg8 {[%clk 0:03:33.7]} 23. Bf1 {[%clk 0:03:17.8]} 23...
Qg7 {[%clk 0:03:19.3]} 24. g3 {[%clk 0:03:10.5]} 24... Rad8 {[%clk 0:03:13.8]}
25. Qd4 {[%clk 0:03:08.4]} 25... Bf3 {[%clk 0:03:05.8]} 26. Rd2 {[%clk
0:03:02.2]} 26... Be4 {[%clk 0:03:01.2]} 27. Qxb6 {[%clk 0:02:57.5]} 27... Qg4
{[%clk 0:02:56.9]} 28. Bg2 {[%clk 0:02:50.8]} 28... Bxg2 {[%clk 0:02:54.9]} 29.
Kxg2 {[%clk 0:02:49.5]} 29... f4 {[%clk 0:02:44.3]} 30. exf4 {[%clk 0:02:39.8]}
30... Qxf4 {[%clk 0:02:41.1]} 31. Rad1 {[%clk 0:02:36.6]} 31... d5 {[%clk
0:02:20.5]} 32. cxd5 {[%clk 0:02:25.4]} 32... exd5 {[%clk 0:02:10]} 33. Qxa6
{[%clk 0:02:00.4]} 33... d4 {[%clk 0:02:00]} 34. Qd3 {[%clk 0:01:49.3]} 34...
Qe5 {[%clk 0:01:55.2]} 35. Qf3 {[%clk 0:01:38.9]} 35... Rge8 {[%clk 0:01:42.4]}
36. Rd3 {[%clk 0:01:35.9]} 36... Qe2 {[%clk 0:01:29.1]} 37. Qxe2 {[%clk
0:01:31.1]} 37... Rxe2 {[%clk 0:01:26.9]} 38. Rxd4 {[%clk 0:01:30.2]} 38... Rxd4
{[%clk 0:01:25.4]} 39. Rxd4 {[%clk 0:01:29.1]} 39... Rxa2 {[%clk 0:01:22.9]} 40.
Rd7 {[%clk 0:01:23.3]} 40... Kg8 {[%clk 0:01:19.5]} 41. b4 {[%clk 0:01:19.6]}
41... Rb2 {[%clk 0:01:18.4]} 42. Rb7 {[%clk 0:01:17.7]} 42... f5 {[%clk
0:01:15]} 43. b5 {[%clk 0:01:12.6]} 43... Kf8 {[%clk 0:01:13.2]} 44. b6 {[%clk
0:01:11.5]} 44... h5 {[%clk 0:01:11.2]} 45. Rb8+ {[%clk 0:01:04.5]} 45... Kf7
{[%clk 0:01:09.9]} 46. Kf3 {[%clk 0:01:02.9]} 46... Kg7 {[%clk 0:00:59.6]} 47.
b7 {[%clk 0:01:01.2]} 47... Rb4 {[%clk 0:00:55.1]} 48. Kg2 {[%clk 0:00:58.1]}
48... Kh7 {[%clk 0:00:49.4]} 49. Kh3 {[%clk 0:00:55.1]} 49... Kg7 {[%clk
0:00:47]} 50. f4 {[%clk 0:00:53.5]} 50... Rb2 {[%clk 0:00:43.2]} 51. Kh4 {[%clk
0:00:44.9]} 51... Rxh2+ {[%clk 0:00:40.7]} 52. Kg5 {[%clk 0:00:44.4]} 52... Rb2
{[%clk 0:00:37.3]} 53. Kxf5 {[%clk 0:00:38.5]} 53... Rb5+ {[%clk 0:00:35.3]} 54.
Ke4 {[%clk 0:00:36.8]} 54... Rb3 {[%clk 0:00:28.5]} 55. f5 {[%clk 0:00:33.5]}
55... Rb4+ {[%clk 0:00:23]} 56. Ke5 {[%clk 0:00:31.7]} 56... Rb5+ {[%clk
0:00:21.8]} 57. Ke6 {[%clk 0:00:30.3]} 57... Rb6+ {[%clk 0:00:20.3]} 58. Kd7
{[%clk 0:00:29.4]} 58... Rb3 {[%clk 0:00:18.6]} 59. Kc7 {[%clk 0:00:22.4]} 59...
Rc3+ {[%clk 0:00:17.5]} 60. Kd6 {[%clk 0:00:21]} 60... Rb3 {[%clk 0:00:16.5]}
61. Ke5 {[%clk 0:00:17.9]} 61... Rb5+ {[%clk 0:00:15.2]} 62. Ke6 {[%clk
0:00:16.5]} 62... Rb6+ {[%clk 0:00:14]} 63. Ke7 {[%clk 0:00:15.3]} 63... Rb3
{[%clk 0:00:12.3]} 64. f6+ {[%clk 0:00:14]} 64... Kh7 {[%clk 0:00:11.1]} 65. f7
{[%clk 0:00:12]} 65... Re3+ {[%clk 0:00:10.1]} 66. Kd6 {[%clk 0:00:09.2]} 66...
Rd3+ {[%clk 0:00:09.1]} 67. Kc6 {[%clk 0:00:08.3]} 67... Rc3+ {[%clk 0:00:07.8]}
68. Kd5 {[%clk 0:00:07.6]} 68... Rd3+ {[%clk 0:00:06.7]} 69. Kc4 {[%clk
0:00:06.7]} 69... Rxg3 {[%clk 0:00:04.9]} 70. Rc8 {[%clk 0:00:05.1]} 70... Rg4+
{[%clk 0:00:03.1]} 71. Kc5 {[%clk 0:00:03.2]} 71... Rg5+ {[%clk 0:00:02.2]} 72.
Kd6 {[%clk 0:00:02.6]} 72... Rg6+ {[%clk 0:00:01.2]} 73. Ke7 {[%clk 0:00:01.8]}
1-0

[Event "Live Chess"]
[Site "Chess.com"]
[Date "2024.06.02"]
[Round "-"]
[White "vincents82"]
[Black "ProfPoisson"]
[Result "0-1"]
[WhiteElo "2002"]
[BlackElo "1302"]
[TimeControl "300"]
[EndTime "23:51:20 PDT"]
[Termination "ProfPoisson won by resignation"]

1. e4 {[%clk 0:04:57.4]} 1... e5 {[%clk 0:04:56.5]} 2. Nf3 {[%clk 0:04:55.7]}
2... Nf6 {[%clk 0:04:56.1]} 3. Nxe5 {[%clk 0:04:54.1]} 3... Nxe4 {[%clk
0:04:54.4]} 4. Qe2 {[%clk 0:04:53.1]} 4... Qe7 {[%clk 0:04:53.4]} 5. Qxe4 {[%clk
0:04:52.1]} 5... d6 {[%clk 0:04:52.1]} 6. d4 {[%clk 0:04:51]} 6... dxe5 {[%clk
0:04:50.6]} 7. dxe5 {[%clk 0:04:50.1]} 7... Nc6 {[%clk 0:04:48.1]} 8. Bb5 {[%clk
0:04:47.6]} 8... Bd7 {[%clk 0:04:45.5]} 9. O-O {[%clk 0:04:39.9]} 9... O-O-O
{[%clk 0:04:43.8]} 10. Bf4 {[%clk 0:04:32.8]} 10... g5 {[%clk 0:04:39.9]} 11.
Bg3 {[%clk 0:04:29.9]} 11... f5 {[%clk 0:04:37.3]} 12. Qa4 {[%clk 0:04:26.8]}
12... f4 {[%clk 0:04:35.1]} 13. Bxc6 {[%clk 0:04:25.8]} 13... Bxc6 {[%clk
0:04:31.8]} 14. Qxa7 {[%clk 0:04:24.4]} 14... b6 {[%clk 0:04:23.2]} 15. Nc3
{[%clk 0:04:15.1]} 15... fxg3 {[%clk 0:04:18.1]} 16. fxg3 {[%clk 0:04:12.1]}
16... Qc5+ {[%clk 0:04:13.4]} 17. Kh1 {[%clk 0:04:10]} 17... Qxe5 {[%clk
0:04:00.2]} 18. a4 {[%clk 0:04:04.2]} 18... Bb4 {[%clk 0:03:49.3]} 19. Na2
{[%clk 0:03:42.6]} 19... Qc5 {[%clk 0:03:34.3]} 20. Nxb4 {[%clk 0:03:39.5]}
20... Qxb4 {[%clk 0:03:31.6]} 21. a5 {[%clk 0:03:38.6]} 21... Bxg2+ {[%clk
0:03:20.8]} 22. Kxg2 {[%clk 0:03:36.2]} 22... Rd2+ {[%clk 0:03:16.3]} 23. Rf2
{[%clk 0:03:20.8]} 23... Qe4+ {[%clk 0:03:08.2]} 24. Kg1 {[%clk 0:03:16.9]}
24... Rxf2 {[%clk 0:02:48.3]} 25. Qa6+ {[%clk 0:03:05.5]} 25... Kd7 {[%clk
0:02:35.6]} 26. Rd1+ {[%clk 0:03:00.4]} 26... Ke8 {[%clk 0:02:16.8]} 27. Qb5+
{[%clk 0:02:53.3]} 27... c6 {[%clk 0:02:10.8]} 0-1

[Event "Live Chess"]
[Site "Chess.com"]
[Date "2024.06.02"]
[Round "-"]
[White "JoeyCage"]
[Black "peteopeteo"]
[Result "1-0"]
[WhiteElo "2397"]
[BlackElo "1546"]
[TimeControl "300"]
[EndTime "23:52:17 PDT"]
[Termination "JoeyCage won by checkmate"]

1. e4 {[%clk 0:04:56.3]} 1... c6 {[%clk 0:04:56.1]} 2. d4 {[%clk 0:04:54.7]}
2... d5 {[%clk 0:04:55.8]} 3. e5 {[%clk 0:04:53.6]} 3... Bf5 {[%clk 0:04:55.4]}
4. c4 {[%clk 0:04:52.2]} 4... e6 {[%clk 0:04:50.1]} 5. Nc3 {[%clk 0:04:50.8]}
5... Bb4 {[%clk 0:04:47.8]} 6. Qb3 {[%clk 0:04:45.3]} 6... Qb6 {[%clk
0:04:41.8]} 7. Be3 {[%clk 0:04:39.6]} 7... Ne7 {[%clk 0:04:33.6]} 8. c5 {[%clk
0:04:37.8]} 8... Bxc3+ {[%clk 0:04:32.3]} 9. Qxc3 {[%clk 0:04:35.4]} 9... Qc7
{[%clk 0:04:24.9]} 10. Nf3 {[%clk 0:04:32.8]} 10... O-O {[%clk 0:04:23.1]} 11.
Be2 {[%clk 0:04:30.3]} 11... b6 {[%clk 0:04:16.7]} 12. b4 {[%clk 0:04:23.7]}
12... Nd7 {[%clk 0:04:13.7]} 13. O-O {[%clk 0:04:21.3]} 13... b5 {[%clk
0:04:09.8]} 14. a4 {[%clk 0:04:19.5]} 14... a6 {[%clk 0:04:06.4]} 15. h3 {[%clk
0:04:16.3]} 15... Be4 {[%clk 0:03:59.6]} 16. Ng5 {[%clk 0:04:13.6]} 16... Bf5
{[%clk 0:03:56]} 17. g4 {[%clk 0:04:10.6]} 17... Bg6 {[%clk 0:03:39.9]} 18. f4
{[%clk 0:04:08.9]} 18... h6 {[%clk 0:03:36.1]} 19. Nf3 {[%clk 0:04:07.4]} 19...
h5 {[%clk 0:03:12.8]} 20. Nh4 {[%clk 0:04:05.2]} 20... Be4 {[%clk 0:03:07.5]}
21. f5 {[%clk 0:03:48.6]} 21... exf5 {[%clk 0:02:55.2]} 22. Nxf5 {[%clk
0:03:43.4]} 22... Nxf5 {[%clk 0:02:49.9]} 23. gxf5 {[%clk 0:03:42]} 23... Qd8
{[%clk 0:02:37.2]} 24. Kh2 {[%clk 0:03:25.8]} 24... Qh4 {[%clk 0:02:31]} 25. Rf4
{[%clk 0:03:21.5]} 25... Qd8 {[%clk 0:02:09.7]} 26. Bxh5 {[%clk 0:03:16.1]}
26... f6 {[%clk 0:02:00.2]} 27. e6 {[%clk 0:03:12]} 27... Nb8 {[%clk 0:01:45.6]}
28. axb5 {[%clk 0:03:10.1]} 28... cxb5 {[%clk 0:01:39.9]} 29. Bg6 {[%clk
0:03:06.8]} 29... Qc7 {[%clk 0:01:38.3]} 30. Qe1 {[%clk 0:03:00.1]} 30... Bxf5
{[%clk 0:01:27.8]} 31. Bxf5 {[%clk 0:02:55.6]} 31... g5 {[%clk 0:01:27.1]} 32.
Qg3 {[%clk 0:02:48.2]} 32... Qg7 {[%clk 0:01:21.4]} 33. Rg4 {[%clk 0:02:45.1]}
33... Nc6 {[%clk 0:01:16]} 34. h4 {[%clk 0:02:43.7]} 34... Qh6 {[%clk
0:01:00.4]} 35. Kg2 {[%clk 0:02:40.8]} 35... Nxb4 {[%clk 0:00:56.5]} 36. hxg5
{[%clk 0:02:37.6]} 36... fxg5 {[%clk 0:00:48.5]} 37. Rxg5+ {[%clk 0:02:36.1]}
37... Kh8 {[%clk 0:00:43.7]} 38. Rh1 {[%clk 0:02:33.3]} 38... Qxh1+ {[%clk
0:00:40.7]} 39. Kxh1 {[%clk 0:02:31.9]} 39... Rxf5 {[%clk 0:00:38.3]} 40. Qh4#
{[%clk 0:02:29.2]} 1-0

[Event "Live Chess"]
[Site "Chess.com"]
[Date "2024.06.02"]
[Round "-"]
[White "Bradfield133"]
[Black "imchessive"]
[Result "1-0"]
[WhiteElo "1872"]
[BlackElo "1584"]
[TimeControl "300"]
[EndTime "23:52:22 PDT"]
[Termination "Bradfield133 won by resignation"]

1. c4 {[%clk 0:04:57.7]} 1... g6 {[%clk 0:04:58.4]} 2. g3 {[%clk 0:04:56.5]}
2... Bg7 {[%clk 0:04:57.5]} 3. Bg2 {[%clk 0:04:55.6]} 3... d6 {[%clk 0:04:56.4]}
4. Nc3 {[%clk 0:04:53.9]} 4... Nf6 {[%clk 0:04:55.2]} 5. e4 {[%clk 0:04:52.6]}
5... e5 {[%clk 0:04:50.4]} 6. Nge2 {[%clk 0:04:51.2]} 6... O-O {[%clk
0:04:48.1]} 7. O-O {[%clk 0:04:50]} 7... Nc6 {[%clk 0:04:47]} 8. d3 {[%clk
0:04:49.2]} 8... Be6 {[%clk 0:04:34.6]} 9. h3 {[%clk 0:04:47.5]} 9... a6 {[%clk
0:04:27.5]} 10. Be3 {[%clk 0:04:44.3]} 10... Qd7 {[%clk 0:04:22.9]} 11. Kh2
{[%clk 0:04:42.4]} 11... h5 {[%clk 0:04:17.3]} 12. Nd5 {[%clk 0:04:17.1]} 12...
Nh7 {[%clk 0:04:11.8]} 13. f4 {[%clk 0:04:11.9]} 13... f5 {[%clk 0:04:05]} 14.
Rf2 {[%clk 0:03:58.3]} 14... fxe4 {[%clk 0:03:57]} 15. dxe4 {[%clk 0:03:55.8]}
15... Ne7 {[%clk 0:03:23.9]} 16. Qd3 {[%clk 0:03:29.8]} 16... c6 {[%clk
0:03:13.9]} 17. Ndc3 {[%clk 0:03:21.5]} 17... d5 {[%clk 0:03:04.9]} 18. exd5
{[%clk 0:03:09.8]} 18... Bf5 {[%clk 0:02:54]} 19. Qd2 {[%clk 0:02:53.4]} 19...
cxd5 {[%clk 0:02:47.9]} 20. Nxd5 {[%clk 0:02:50.7]} 20... e4 {[%clk 0:02:39.6]}
21. Nec3 {[%clk 0:02:39.1]} 21... Bxc3 {[%clk 0:02:22.3]} 22. Nxc3 {[%clk
0:02:32.5]} 22... Qxd2 {[%clk 0:02:19.8]} 23. Rxd2 {[%clk 0:02:28.6]} 23... Nf6
{[%clk 0:02:12.2]} 24. Rad1 {[%clk 0:02:16.4]} 24... Rac8 {[%clk 0:02:05.5]} 25.
b3 {[%clk 0:02:11.9]} 25... b5 {[%clk 0:02:00.7]} 26. Nd5 {[%clk 0:01:56.5]}
26... Nexd5 {[%clk 0:01:51.3]} 27. cxd5 {[%clk 0:01:54.9]} 27... Rc3 {[%clk
0:01:44.3]} 28. Bd4 {[%clk 0:01:50.8]} 28... Rc7 {[%clk 0:01:30.6]} 29. Be5
{[%clk 0:01:48.2]} 29... Rd7 {[%clk 0:01:18.1]} 30. d6 {[%clk 0:01:44.2]} 30...
e3 {[%clk 0:01:14]} 31. Re2 {[%clk 0:01:38.2]} 31... Be4 {[%clk 0:01:09.6]} 32.
Rxe3 {[%clk 0:01:34.8]} 32... Bxg2 {[%clk 0:01:04.6]} 33. Kxg2 {[%clk
0:01:33.6]} 33... Ne8 {[%clk 0:00:55.4]} 34. Rc3 {[%clk 0:01:18.6]} 34... Kf7
{[%clk 0:00:41.1]} 35. Rc8 {[%clk 0:01:13.7]} 35... Ke6 {[%clk 0:00:34.9]} 36.
Re1 {[%clk 0:01:00.1]} 36... Kf7 {[%clk 0:00:23.9]} 37. Rc6 {[%clk 0:00:50.1]}
37... a5 {[%clk 0:00:16.9]} 38. Ra6 {[%clk 0:00:45.1]} 38... a4 {[%clk
0:00:15.7]} 39. bxa4 {[%clk 0:00:43.3]} 39... bxa4 {[%clk 0:00:15.6]} 40. Rxa4
{[%clk 0:00:41.7]} 40... Nxd6 {[%clk 0:00:15]} 41. Rd4 {[%clk 0:00:33]} 41...
Rfd8 {[%clk 0:00:13.5]} 42. Red1 {[%clk 0:00:31.1]} 42... Ke6 {[%clk 0:00:10.1]}
43. Bxd6 {[%clk 0:00:29.3]} 43... Rxd6 {[%clk 0:00:09.1]} 44. Rxd6+ {[%clk
0:00:28.4]} 44... Rxd6 {[%clk 0:00:09]} 45. Rxd6+ {[%clk 0:00:26.2]} 45... Kxd6
{[%clk 0:00:08.5]} 46. Kf3 {[%clk 0:00:25.3]} 1-0

[Event "Live Chess"]
[Site "Chess.com"]
[Date "2024.06.02"]
[Round "-"]
[White "Hacker_2009"]
[Black "Dhaydon19"]
[Result "1/2-1/2"]
[WhiteElo "2236"]
[BlackElo "2673"]
[TimeControl "300"]
[EndTime "23:52:40 PDT"]
[Termination "Game drawn by repetition"]

1. e4 {[%clk 0:04:56.3]} 1... e6 {[%clk 0:04:59.4]} 2. d4 {[%clk 0:04:54.1]}
2... d5 {[%clk 0:04:58.7]} 3. Nd2 {[%clk 0:04:53.6]} 3... dxe4 {[%clk
0:04:58.1]} 4. Nxe4 {[%clk 0:04:50.5]} 4... Nd7 {[%clk 0:04:57.8]} 5. Nf3 {[%clk
0:04:47.8]} 5... Ngf6 {[%clk 0:04:56.8]} 6. Bd3 {[%clk 0:04:43.8]} 6... Nxe4
{[%clk 0:04:55.5]} 7. Bxe4 {[%clk 0:04:42.9]} 7... Nf6 {[%clk 0:04:54.4]} 8. Bd3
{[%clk 0:04:42.4]} 8... Be7 {[%clk 0:04:52.2]} 9. O-O {[%clk 0:04:41.6]} 9...
O-O {[%clk 0:04:51.7]} 10. h3 {[%clk 0:04:33.2]} 10... b6 {[%clk 0:04:49.3]} 11.
Bf4 {[%clk 0:04:32.4]} 11... Bb7 {[%clk 0:04:47.4]} 12. c3 {[%clk 0:04:24.3]}
12... c5 {[%clk 0:04:43.8]} 13. Be5 {[%clk 0:04:05.2]} 13... cxd4 {[%clk
0:04:41.2]} 14. Bxd4 {[%clk 0:04:00.5]} 14... Qd5 {[%clk 0:04:37.5]} 15. Re1
{[%clk 0:03:53.5]} 15... Rad8 {[%clk 0:04:36]} 16. Qc2 {[%clk 0:03:37.4]} 16...
h6 {[%clk 0:04:29.2]} 17. Rad1 {[%clk 0:03:26.7]} 17... Qc6 {[%clk 0:04:27.2]}
18. Bxf6 {[%clk 0:02:31.7]} 18... Bxf6 {[%clk 0:04:08.5]} 19. Bh7+ {[%clk
0:02:30.6]} 19... Kh8 {[%clk 0:04:06.7]} 20. Be4 {[%clk 0:02:28]} 20... Qc7
{[%clk 0:04:03.5]} 21. Bxb7 {[%clk 0:02:26]} 21... Qxb7 {[%clk 0:04:03]} 22.
Rxd8 {[%clk 0:02:23.2]} 22... Rxd8 {[%clk 0:04:02]} 23. Rd1 {[%clk 0:02:23.1]}
23... Rd5 {[%clk 0:04:00.8]} 24. Rxd5 {[%clk 0:02:20.5]} 24... Qxd5 {[%clk
0:03:59.5]} 25. Qa4 {[%clk 0:02:15.3]} 25... e5 {[%clk 0:03:46.1]} 26. Qxa7
{[%clk 0:01:55.8]} 26... e4 {[%clk 0:03:31.8]} 27. Nd4 {[%clk 0:01:53.8]} 27...
Bxd4 {[%clk 0:03:20]} 28. cxd4 {[%clk 0:01:53.7]} 28... b5 {[%clk 0:03:17.8]}
29. a3 {[%clk 0:01:36.6]} 29... Qb3 {[%clk 0:03:02.8]} 30. Qa8+ {[%clk
0:01:29.5]} 30... Kh7 {[%clk 0:03:01.8]} 31. Qxe4+ {[%clk 0:01:28.7]} 31... g6
{[%clk 0:03:01.3]} 32. Qe2 {[%clk 0:01:23.4]} 32... h5 {[%clk 0:02:56.1]} 33.
Qd2 {[%clk 0:01:22.1]} 33... Qd5 {[%clk 0:02:54.5]} 34. Qc3 {[%clk 0:01:20]}
34... Qe4 {[%clk 0:02:51.8]} 35. Qb3 {[%clk 0:01:13.9]} 35... Qe1+ {[%clk
0:02:48.9]} 36. Kh2 {[%clk 0:01:06.2]} 36... Qxf2 {[%clk 0:02:48.2]} 37. Qf3
{[%clk 0:00:55.3]} 37... Qxd4 {[%clk 0:02:47.2]} 38. Qxf7+ {[%clk 0:00:54.5]}
38... Kh6 {[%clk 0:02:46.7]} 39. Qf8+ {[%clk 0:00:52.7]} 39... Kh7 {[%clk
0:02:45.4]} 40. Qe7+ {[%clk 0:00:46.5]} 40... Kh6 {[%clk 0:02:44.1]} 41. Qf8+
{[%clk 0:00:40.6]} 41... Kh7 {[%clk 0:02:42.7]} 42. Qe7+ {[%clk 0:00:40.1]}
42... Kh6 {[%clk 0:02:41.4]} 43. Qf8+ {[%clk 0:00:39.6]} 1/2-1/2

[Event "Live Chess"]
[Site "Chess.com"]
[Date "2024.06.02"]
[Round "-"]
[White "KeithArkell"]
[Black "AlanBstard10"]
[Result "1-0"]
[WhiteElo "2416"]
[BlackElo "1167"]
[TimeControl "300"]
[EndTime "23:52:44 PDT"]
[Termination "KeithArkell won by checkmate"]

1. d4 {[%clk 0:04:57.1]} 1... Nf6 {[%clk 0:04:58]} 2. Nf3 {[%clk 0:04:56.4]}
2... d5 {[%clk 0:04:56]} 3. c4 {[%clk 0:04:55.8]} 3... e6 {[%clk 0:04:50.2]} 4.
cxd5 {[%clk 0:04:55]} 4... exd5 {[%clk 0:04:42.8]} 5. Nc3 {[%clk 0:04:54.6]}
5... c6 {[%clk 0:04:40.9]} 6. Qc2 {[%clk 0:04:54]} 6... Be7 {[%clk 0:04:35]} 7.
Bg5 {[%clk 0:04:53.1]} 7... O-O {[%clk 0:04:33.5]} 8. e3 {[%clk 0:04:52.6]} 8...
Bg4 {[%clk 0:04:29.1]} 9. Ne5 {[%clk 0:04:51.2]} 9... h5 {[%clk 0:04:08]} 10.
Bd3 {[%clk 0:04:48.3]} 10... Nbd7 {[%clk 0:03:58.7]} 11. h3 {[%clk 0:04:44.3]}
11... Be6 {[%clk 0:03:49.6]} 12. g4 {[%clk 0:04:36.3]} 12... Nxe5 {[%clk
0:03:47.6]} 13. dxe5 {[%clk 0:04:35]} 13... Nd7 {[%clk 0:03:41.8]} 14. Bxe7
{[%clk 0:04:28.7]} 14... Qxe7 {[%clk 0:03:40.8]} 15. f4 {[%clk 0:04:28]} 15...
h4 {[%clk 0:03:35.6]} 16. f5 {[%clk 0:04:25.9]} 16... Nxe5 {[%clk 0:03:30.3]}
17. fxe6 {[%clk 0:04:24.3]} 17... Nxd3+ {[%clk 0:03:28.5]} 18. Qxd3 {[%clk
0:04:22.8]} 18... Qxe6 {[%clk 0:03:26.5]} 19. O-O-O {[%clk 0:04:21.7]} 19...
Rad8 {[%clk 0:02:59]} 20. Rde1 {[%clk 0:04:17.7]} 20... Qg6 {[%clk 0:02:53.1]}
21. Qxg6 {[%clk 0:04:16.5]} 21... fxg6 {[%clk 0:02:52.2]} 22. Rhf1 {[%clk
0:04:15.6]} 22... Rf7 {[%clk 0:02:39.6]} 23. Rxf7 {[%clk 0:04:13.9]} 23... Kxf7
{[%clk 0:02:39]} 24. Kd2 {[%clk 0:04:13]} 24... Kf6 {[%clk 0:02:32.9]} 25. Rf1+
{[%clk 0:04:10.6]} 25... Kg5 {[%clk 0:02:31]} 26. b4 {[%clk 0:04:09.2]} 26...
Rd7 {[%clk 0:02:28.7]} 27. Kd3 {[%clk 0:04:08]} 27... Kh6 {[%clk 0:02:20.8]} 28.
Kd4 {[%clk 0:04:05.7]} 28... b6 {[%clk 0:02:14.7]} 29. Rf8 {[%clk 0:04:04]}
29... Kh7 {[%clk 0:02:11.2]} 30. g5 {[%clk 0:04:02.3]} 30... Re7 {[%clk
0:02:05.8]} 31. Rc8 {[%clk 0:03:58.7]} 31... Re6 {[%clk 0:02:03.7]} 32. a4
{[%clk 0:03:56.7]} 32... Re7 {[%clk 0:01:52.4]} 33. Rxc6 {[%clk 0:03:55.2]}
33... Rf7 {[%clk 0:01:49.8]} 34. Nxd5 {[%clk 0:03:50]} 34... Rf3 {[%clk
0:01:48.6]} 35. Rc7 {[%clk 0:03:49.5]} 35... Rxh3 {[%clk 0:01:47.8]} 36. Nf6+
{[%clk 0:03:48.9]} 36... Kh8 {[%clk 0:01:46.2]} 37. Rc8# {[%clk 0:03:48.5]} 1-0

[Event "Live Chess"]
[Site "Chess.com"]
[Date "2024.06.02"]
[Round "-"]
[White "booktrunk"]
[Black "matt1979"]
[Result "0-1"]
[WhiteElo "1508"]
[BlackElo "1396"]
[TimeControl "300"]
[EndTime "23:52:46 PDT"]
[Termination "matt1979 won by resignation"]

1. d4 {[%clk 0:04:53.3]} 1... e6 {[%clk 0:04:58.2]} 2. Nc3 {[%clk 0:04:48.8]}
2... d5 {[%clk 0:04:49.5]} 3. Bf4 {[%clk 0:04:44.9]} 3... Bb4 {[%clk 0:04:45.6]}
4. Qd2 {[%clk 0:04:41.3]} 4... Nf6 {[%clk 0:04:39.1]} 5. a3 {[%clk 0:04:40.3]}
5... Bxc3 {[%clk 0:04:37.4]} 6. Qxc3 {[%clk 0:04:37.3]} 6... c6 {[%clk
0:04:35.8]} 7. f3 {[%clk 0:04:30.1]} 7... O-O {[%clk 0:04:31]} 8. e3 {[%clk
0:04:27.5]} 8... Nbd7 {[%clk 0:04:19.4]} 9. Qb4 {[%clk 0:04:23.5]} 9... Nb6
{[%clk 0:04:10]} 10. b3 {[%clk 0:04:16]} 10... Re8 {[%clk 0:03:59.9]} 11. Bd3
{[%clk 0:04:11.3]} 11... h6 {[%clk 0:03:43.1]} 12. Ne2 {[%clk 0:04:07.8]} 12...
a5 {[%clk 0:03:32.2]} 13. Qd2 {[%clk 0:04:05]} 13... Nh5 {[%clk 0:03:20.4]} 14.
Bg3 {[%clk 0:03:57.1]} 14... Nxg3 {[%clk 0:03:18.5]} 15. Nxg3 {[%clk 0:03:55.5]}
15... e5 {[%clk 0:03:13.4]} 16. dxe5 {[%clk 0:03:52.7]} 16... Rxe5 {[%clk
0:03:11.7]} 17. f4 {[%clk 0:03:51.7]} 17... Re8 {[%clk 0:03:08.1]} 18. O-O
{[%clk 0:03:45.5]} 18... Bg4 {[%clk 0:03:01.4]} 19. h3 {[%clk 0:03:39.9]} 19...
Bd7 {[%clk 0:02:58.4]} 20. Qf2 {[%clk 0:03:36]} 20... Nc8 {[%clk 0:02:45.3]} 21.
Rae1 {[%clk 0:03:34.3]} 21... Nd6 {[%clk 0:02:43.2]} 22. a4 {[%clk 0:03:22.3]}
22... b6 {[%clk 0:02:37.5]} 23. e4 {[%clk 0:03:15.9]} 23... dxe4 {[%clk
0:02:33.4]} 24. Nxe4 {[%clk 0:03:13]} 24... Nxe4 {[%clk 0:02:32.2]} 25. Rxe4
{[%clk 0:03:10.9]} 25... c5 {[%clk 0:02:24.3]} 26. Rfe1 {[%clk 0:03:07.5]} 26...
Qc7 {[%clk 0:02:16.6]} 27. Bb5 {[%clk 0:03:01.4]} 27... Bxb5 {[%clk 0:02:13.5]}
28. axb5 {[%clk 0:02:55.8]} 28... Qd7 {[%clk 0:02:07.3]} 29. Rxe8+ {[%clk
0:02:50.9]} 29... Rxe8 {[%clk 0:02:05.7]} 30. Rxe8+ {[%clk 0:02:49.2]} 30...
Qxe8 {[%clk 0:02:04.7]} 31. Qf1 {[%clk 0:02:47.8]} 31... Qe3+ {[%clk 0:02:01.5]}
32. Kh2 {[%clk 0:02:38.5]} 32... Qd4 {[%clk 0:01:49.1]} 33. Qf3 {[%clk
0:02:28.2]} 33... Qd6 {[%clk 0:01:41.8]} 34. Kh1 {[%clk 0:02:23]} 34... Kh7
{[%clk 0:01:32]} 35. g3 {[%clk 0:02:19.9]} 35... Qd2 {[%clk 0:01:26.3]} 36. Qd3+
{[%clk 0:02:04.7]} 36... Qxd3 {[%clk 0:01:21.6]} 37. cxd3 {[%clk 0:02:04.6]}
37... Kg6 {[%clk 0:01:20.8]} 38. Kg2 {[%clk 0:02:03.8]} 38... Kf5 {[%clk
0:01:18.4]} 39. Kf3 {[%clk 0:02:03.7]} 39... Ke6 {[%clk 0:01:15.8]} 40. Ke4
{[%clk 0:02:02.4]} 40... f5+ {[%clk 0:01:14.2]} 41. Ke3 {[%clk 0:02:01]} 41...
Kd5 {[%clk 0:01:11.4]} 42. g4 {[%clk 0:01:59]} 42... g6 {[%clk 0:01:07.2]} 43.
gxf5 {[%clk 0:01:55.1]} 43... gxf5 {[%clk 0:01:05.6]} 44. Kd2 {[%clk 0:01:49.6]}
44... Kd4 {[%clk 0:01:02.7]} 45. h4 {[%clk 0:01:43.8]} 45... h5 {[%clk
0:00:59.7]} 46. Kc2 {[%clk 0:01:40.9]} 46... Ke3 {[%clk 0:00:57.8]} 47. Kc3
{[%clk 0:01:40.3]} 47... Kxf4 {[%clk 0:00:55.5]} 48. Kc4 {[%clk 0:01:40.2]}
48... Ke3 {[%clk 0:00:53.4]} 49. Kd5 {[%clk 0:01:39.1]} 49... f4 {[%clk
0:00:52]} 50. Kc6 {[%clk 0:01:39]} 50... f3 {[%clk 0:00:50.9]} 51. Kxb6 {[%clk
0:01:38.9]} 51... f2 {[%clk 0:00:50.4]} 52. Kxa5 {[%clk 0:01:38.8]} 52... f1=Q
{[%clk 0:00:48.9]} 53. b6 {[%clk 0:01:38.7]} 53... Qxd3 {[%clk 0:00:47.9]} 54.
b7 {[%clk 0:01:38.6]} 54... Qd8+ {[%clk 0:00:45.8]} 55. Ka6 {[%clk 0:01:30.4]}
55... Qb8 {[%clk 0:00:44.6]} 56. Kb6 {[%clk 0:01:27.7]} 56... Kd4 {[%clk
0:00:42.8]} 57. Ka6 {[%clk 0:01:23.2]} 57... Kc3 {[%clk 0:00:42.7]} 58. Kb6
{[%clk 0:01:21.8]} 58... Kxb3 {[%clk 0:00:40.4]} 59. Kxc5 {[%clk 0:01:21.7]}
59... Qxb7 {[%clk 0:00:38.9]} 60. Kd4 {[%clk 0:01:18.9]} 60... Qb4+ {[%clk
0:00:37.1]} 61. Ke5 {[%clk 0:01:17.7]} 61... Qd2 {[%clk 0:00:35.2]} 62. Kf5
{[%clk 0:01:16.3]} 62... Qg2 {[%clk 0:00:33.3]} 63. Kf4 {[%clk 0:01:13.9]} 63...
Qg4+ {[%clk 0:00:32.3]} 64. Ke5 {[%clk 0:01:12.5]} 64... Qxh4 {[%clk 0:00:31.4]}
0-1